Cogmind - Beta 15 @@@ ROGUE MODE // 2025.08.01 @ 10:11:34 Player: beans Result: Destroyed by G-47 Trooper with Particle Gun Performance ------------- Evolutions (2) 1000 Regions Visited (3) 600 Robots Destroyed (22) 110 Value Destroyed (471) 471 Prototype IDs (2) 40 Alien Tech Used (0) 0 Bonus (0) 0 TOTAL SCORE: 2221 Bonus ------- None Cogmind --------- Core Integrity 0/550 Matter 9/300 Energy 100/100 System Corruption 0% Temperature Cool (-73) Movement Core (100) Ox1 Location -8/Materials Parts ------- > --- POWER (1) -------- (None) > --- PROPULSION (2) --- (None) > --- UTILITY (4) ------ Cryofiber Web Small Storage Unit > --- WEAPON (4) ------- (None) > --- INVENTORY (8) ---- Rocket Launcher Peak State ------------ > --- POWER ------------ Heavy Ion Engine > --- PROPULSION ------- Light Treads Light Treads > --- UTILITY ---------- Small Storage Unit > --- WEAPON ----------- Advanced Beam Cannon Light Assault Rifle Light Assault Rifle Grenade Launcher > --- INVENTORY -------- (None) [Rating: 12] Favorites ----------- Power Ion Engine Engine Ion Engine Power Core Nuclear Core Propulsion Light Treads Treads Light Treads Hover Unit Airjet Utility Small Storage Unit Device Cryofiber Web Storage Small Storage Unit Weapon Light Assault Rifle Energy Cannon Advanced Beam Cannon Ballistic Gun Light Assault Rifle Ballistic Cannon Improved Light Cannon Launcher Grenade Launcher Build | -11 -10 -9 -8 ------- Run | Yrd Mat Mat Mat Slots Evolved 4 | . . 2 2 Power . | . . . . Propulsion . | . . . . Utility 2 | . . . 2 Weapon 2 | . . 2 . Parts Attached 16 | 5 1 6 4 Power 4 | 1 . 2 1 Engine 3 | 1 . 2 . Core 1 | . . . 1 Reactor . | . . . . Propulsion 3 | 2 . . 1 Treads 2 | 2 . . . Leg . | . . . . Wheel . | . . . . Hover 1 | . . . 1 Flight . | . . . . Utility 2 | 1 . . 1 Device 1 | . . . 1 Storage 1 | 1 . . . Processor . | . . . . Hackware . | . . . . Protection . | . . . . Artifact . | . . . . Weapon 7 | 1 1 4 1 Energy Gun . | . . . . Energy Cannon 1 | . . 1 . Ballistic Gun 2 | 1 . 1 . Ballistic Cannon 1 | . . . 1 Launcher 3 | . 1 2 . Special Weapon . | . . . . Impact Weapon . | . . . . Slashing Weapon . | . . . . Piercing Weapon . | . . . . Special Melee Weapon . | . . . . Unidentified Prototypes 2 | . . 2 . Parts Lost 12 | . . 9 3 Power 3 | . . 2 1 Propulsion 3 | . . 2 1 Utility . | . . . . Weapon 6 | . . 5 1 Highest Loss Streak 4 | . . 4 3 To Critical Strikes . | . . . . Average Backups . | . . . 1 Power . | . . . . Propulsion . | . . . . Utility . | . . . . Weapon . | . . . 1 Tool/Special . | . . . . Unused Backups . | . . . . Power . | . . . . Propulsion . | . . . . Utility . | . . . . Weapon . | . . . . Tool/Special . | . . . . Average Slot Usage (%) 63 | . 84 60 22 Engine 8 | . 14 7 . Treads 18 | . 28 16 . Storage 11 | . 14 11 9 Energy Cannon 4 | . . 8 . Ballistic Gun 8 | . 14 7 . Launcher 9 | . 13 9 . Peak Build Rating 12 | 5 6 12 12 Average Rating 7 | 3 5 8 5 On Entrance 3 | . 5 6 1 Naked Turns . | . . . . Heaviest Build 22 | 11 14 22 13 Greatest Support 40 | 40 40 40 8 Greatest Overweight (x) 3 | . . 1 3 Average Overweight (x) . | . . . . Largest Inventory Capacity 8 | 8 8 8 8 Average Capacity 7 | 6 8 8 8 Most Carried 5 | 5 1 2 2 Average Carried . | . . . . Final Capacity 8 | 8 8 8 8 Final Carried 1 | . . 1 1 Class Distribution -------------------- 88% | Mutant 11% | Gunner Dominant Class ---------------- Mutant | -10/Materials Mutant | -9/Materials Mutant | -8/Materials Resources | -11 -10 -9 -8 ----------- Run | Yrd Mat Mat Mat Matter Collected 528 | 210 . 318 . Remotely . | . . . . Salvage Created 550 | . 10 540 . Parts 35 | . 1 34 . Haulers Intercepted 1 | . . 1 . Recyclers Shooed 2 | . . 2 . Parts Field Recycled . | . . . . Retrieved Matter . | . . . . Parts Self-Destructed . | . . . . Prevented . | . . . . Kills | -11 -10 -9 -8 ------- Run | Yrd Mat Mat Mat Combat Hostiles Destroyed 9 | . . 9 . AOE 8 | . . 8 . Classes Destroyed 9 | . 1 8 . Worker 3 | . . 3 . Builder 2 | . . 2 . Tunneler 1 | . 1 . . Hauler 1 | . . 1 . Recycler 4 | . . 4 . Operator 1 | . . 1 . Watcher 1 | . . 1 . Grunt 8 | . . 8 . Sentry 1 | . . 1 . Best Kill Streak 6 | . 1 6 . Combat Bots Only 5 | . . 5 . Max Kills in Single Turn 2 | . 1 2 . Gunslinging . | . . . . Exploded 1 | . . 1 . Melee . | . . . . Uniques/NPCs Destroyed . | . . . . Combat | -11 -10 -9 -8 -------- Run | Yrd Mat Mat Mat Hostile Shots Fired 240 | . . 113 127 Missed 73 | . . 31 42 Hits 167 | . . 82 85 Projectile 167 | . . 82 85 Critical Strikes 5 | . . 3 2 Damage Taken 2054 | . 44 1172 838 Core 848 | . 11 285 552 Absorbed by Shields . | . . . . Core Remaining (%) 74 | 100 95 28 . Volleys Fired 63 | . 5 56 2 Largest 4 | . 2 4 1 Hottest 138 | . 50 138 33 Shots Fired 102 | . 9 91 2 Gun 36 | . 5 31 . Cannon 12 | . . 12 . Launcher 54 | . 4 48 2 Special . | . . . . Kinetic 36 | . 5 31 . Thermal 12 | . . 12 . Explosive 37 | . 4 31 2 Electromagnetic 17 | . . 17 . Robot Hit Streak 6 | . 2 6 . Robot Miss Streak 3 | . . 3 . Penetration Max . | . . . . Secondary Targets . | . . . . Shots Hit Robots 29 | . 2 27 . Core Hits 48 | . 3 45 . Critical Kills . | . . . . Critical Parts Destroyed . | . . . . Critical Strikes . | . . . . Melee Attacks . | . . . . Impact . | . . . . Slashing . | . . . . Piercing . | . . . . Sneak Attacks . | . . . . Combat Hostiles . | . . . . Follow-up Attacks . | . . . . Damage Inflicted 1832 | . 51 1693 88 Guns 119 | . 8 111 . Cannons 81 | . . 81 . Explosions 1631 | . 43 1500 88 Melee . | . . . . Ramming 1 | . . 1 . Kinetic 119 | . 8 111 . Thermal 81 | . . 81 . Explosive 1291 | . 43 1160 88 Electromagnetic 340 | . . 340 . Impact . | . . . . Slashing . | . . . . Piercing . | . . . . Highest Corruption . | . . . . Average Corruption . | . . . . Corruption Purged . | . . . . Corruption Blocked . | . . . . Overload Shots . | . . . . Overflow Damage 21 | . . . 21 Projectiles . | . . . . Explosions 21 | . . . 21 Melee . | . . . . Knockbacks . | . . . . Impact . | . . . . Kinetic . | . . . . Secondary . | . . . . Self-Inflicted Damage 135 | . 45 90 . Shots 8 | . 2 6 . Rammed 1 | . . 1 . Targets Rammed 1 | . . 1 . Kicked . | . . . . Crushed . | . . . . Highest Temperature 527 | . 10 527 . Average Temperature 155 | . 7 166 . Received Heat Transfer 786 | . . 597 189 Effects 5 | . . 5 . Shutdowns 1 | . . 1 . Energy Bleed 1 | . . 1 . Short Circuit 2 | . . 2 . Damage (minor) 1 | . . 1 . Siege Activations . | . . . . Martial Activations . | . . . . Shielding Activations . | . . . . Robots Disrupted . | . . . . Combat Hostiles . | . . . . Robots Corrupted 1 | . . 1 . Combat Hostiles 1 | . . 1 . Parts Fried 1 | . . 1 . Impact Corruptions . | . . . . Robots Melted . | . . . . Combat Hostiles . | . . . . Parts Melted . | . . . . Heat Transferred 148 | . . 148 . Parts Sabotaged . | . . . . Parts Stolen . | . . . . Parts Stripped . | . . . . Power Chain Reactions . | . . . . Alert | -11 -10 -9 -8 ------- Run | Yrd Mat Mat Mat Maximum Alert Level 1 | . . 1 . Low Security (%) 80 | 100 100 62 100 Level 1 19 | . . 37 . Level 2 . | . . . . Level 3 . | . . . . Level 4 . | . . . . Level 5 . | . . . . High Security . | . . . . Max Security . | . . . . Peak Influence 255 | . 19 255 84 Initial 83 | . . 4 83 Average 88 | . 1 154 51 Influence Increases 709 | . 51 602 56 Destroy 0b10 Robot/C 180 | . . 180 . Destroy 0b10 Robot/NC 65 | . 5 60 . Destroy Leader 54 | . . 54 . Disable Machine 75 | . . 75 . Destroy Structure 260 | . 31 218 11 Lose Combat Pursuer 75 | . 15 15 45 Influence Decreases 670 | . 40 415 215 Entered New Map 122 | . . 7 115 Time Decay 428 | . 40 318 70 Lost Part 120 | . . 90 30 Squads Dispatched 5 | . . 4 1 Investigation 1 | . . 1 . Extermination . | . . . . Reinforcement 4 | . . 3 1 Assault . | . . . . Garrison . | . . . . Intercept . | . . . . Searches Triggered . | . . . . Construction Impeded 2 | . . 2 . Haulers Reinforced . | . . . . Active Scanning Responses . | . . . . Cargo Convoy Interrupts . | . . . . Stealth | -11 -10 -9 -8 --------- Run | Yrd Mat Mat Mat Distress Signals 3 | . 1 . 2 Communications Jammed . | . . . . Distress Signals . | . . . . Times Spotted 35 | . 1 16 18 Peak Tracking Total 14 | . 2 6 14 Tactical Retreats 4 | . 1 1 2 Traps | -11 -10 -9 -8 ------- Run | Yrd Mat Mat Mat Traps Triggered 1 | . . 1 . Indirectly 1 | . . 1 . Trap Hack Attempts . | . . . . Triggered . | . . . . Disarmed . | . . . . Reprogrammed . | . . . . Reused . | . . . . Traps Extracted . | . . . . Installed . | . . . . Triggered . | . . . . Machines | -11 -10 -9 -8 ---------- Run | Yrd Mat Mat Mat Machines Disabled 5 | . . 5 . Max in Single Turn 2 | . . 2 . Machines Repaired . | . . . . Machines Dismantled . | . . . . Machines Sabotaged . | . . . . Overloaded Fab Kills . | . . . . Hacking | -11 -10 -9 -8 --------- Run | Yrd Mat Mat Mat Machines Accessed . | . . . . Terminals . | . . . . Fabricators . | . . . . Repair Stations . | . . . . Recycling Units . | . . . . Scanalyzers . | . . . . Garrison Access . | . . . . Total Hacks . | . . . . Successful . | . . . . Failed . | . . . . Catastrophic . | . . . . Database Lockouts . | . . . . Manual . | . . . . Terminals . | . . . . Fabricators . | . . . . Repair Stations . | . . . . Recycling Units . | . . . . Scanalyzers . | . . . . Garrison Access . | . . . . Terminal Hacks . | . . . . Fabricator Hacks . | . . . . Repair Station Hacks . | . . . . Recycling Unit Hacks . | . . . . Scanalyzer . | . . . . Garrison Access Hacks . | . . . . Unauthorized Hacks . | . . . . Terminals . | . . . . Fabricators . | . . . . Repair Stations . | . . . . Recycling Units . | . . . . Scanalyzers . | . . . . Garrison Access . | . . . . Data Cores Recovered . | . . . . Used . | . . . . Hacking Detections . | . . . . Full Trace Events . | . . . . Feedback Events . | . . . . Feedback Blocked . | . . . . Robot Schematics Acquired . | . . . . Robots Built . | . . . . Authchips . | . . . . Time . | . . . . Total Robot Build Rating . | . . . . Part Schematics Acquired . | . . . . Parts Built . | . . . . Authchips . | . . . . Time . | . . . . Total Part Build Rating . | . . . . Parts Repaired . | . . . . Time . | . . . . Parts Recycled . | . . . . Recycled Matter . | . . . . Retrieved Matter . | . . . . Retrieved Components . | . . . . Parts Scanalyzed . | . . . . Part Schematics Acquired . | . . . . Parts Damaged . | . . . . Bothacking | -11 -10 -9 -8 ------------ Run | Yrd Mat Mat Mat Used RIF Installer . | . . . . Robots Hacked . | . . . . Non-combat . | . . . . Combat . | . . . . Robot Hacks Applied . | . . . . Relay Couplers Released . | . . . . Fabnet Peak Effective % . | . . . . Robots Rewired . | . . . . Allies Hacked . | . . . . Hacks Repelled . | . . . . Allies | -11 -10 -9 -8 -------- Run | Yrd Mat Mat Mat Total Allies . | . . . . Largest Group . | . . . . Highest-Rated Group . | . . . . Highest-Rated Ally . | . . . . Total Orders . | . . . . Ally Attacks . | . . . . Total Damage . | . . . . Kills . | . . . . Allies Corrupted . | . . . . Allies Melted . | . . . . Intel | -11 -10 -9 -8 ------- Run | Yrd Mat Mat Mat Active Infowar (turns) . | . . . . Robot Analysis Total . | . . . . Derelict Logs Recovered . | . . . . Drone Launches . | . . . . Drone Recoveries . | . . . . Exploration | -11 -10 -9 -8 ------------- Run | Yrd Mat Mat Mat Turns Passed 1332 | 56 424 708 144 Spaces Moved 617 | 44 105 338 130 Core 102 | 21 . 17 64 Treads 449 | 23 105 321 . Legs . | . . . . Wheels . | . . . . Hover 66 | . . . 66 Flight . | . . . . Fastest Speed 50 | 50 160 100 60 Average Speed 141 | 107 160 156 98 Slowest Speed 200 | 160 160 160 200 Overloaded Moves . | . . . . Propulsion Burnouts . | . . . . Robots Hopped . | . . . . Potential Cave-ins . | . . . . Cave-ins Triggered . | . . . . Exploration Rate (%) 17 | 4 18 26 21 Regions Visited 3 Branch Regions . Pre-discovered Areas . | . . . . Known Exits Taken . | . . . . Unknown Exits Taken 3 | 1 1 1 . Scrap Searched . | . . . . Spaces Dug 6 | . . . 6 Terrain Destroyed 294 | . 30 254 10 Melee . | . . . . Projectile 1 | . . 1 . AOE 293 | . 30 253 10 Terrain Rammed . | . . . . Walls Destroyed . | . . . . Machines Disabled . | . . . . Actions | -11 -10 -9 -8 --------- Run | Yrd Mat Mat Mat Total 991 | 53 353 440 145 Wait 273 | . 242 28 3 Move 614 | 43 104 337 130 Hop . | . . . . Pick Up 16 | 5 1 6 4 Fast Attach . | . . . . Attach 18 | 5 1 7 5 Detach 4 | . . 3 1 Swap 1 | . . 1 . Drop 1 | . . 1 . Fire 63 | . 5 56 2 Melee . | . . . . Ram . | . . . . Kick . | . . . . Crush 1 | . . 1 . Escape Stasis . | . . . . Rewire . | . . . . Trap . | . . . . Miscellaneous . | . . . . Route ------- -11/Scrapyard -10/Materials -9/Materials -8/Materials History --------- Turn | Location | Event 4 | -11/Scrapyard | Discovered new exit (range 16) 57 | -11/Scrapyard | Entered Materials 308 | -10/Materials | Build established: Mutant 444 | -10/Materials | Discovered new exit (range 16) 481 | -10/Materials | Entered another Materials area 481 | -9/Materials | Evolved 2 slots: Weapon x2 849 | -9/Materials | Lost 3 parts (1p1n1w) 892 | -9/Materials | Core integrity fell below 50% 1048 | -9/Materials | Discovered new exit (range 4) 1189 | -9/Materials | Entered another Materials area 1189 | -8/Materials | Evolved 2 slots: Utility x2 1204 | -8/Materials | Lost 4 parts (1p1n2w) 1300 | -8/Materials | Core integrity fell below 50% 1318 | -8/Materials | Lost 3 parts (1p1n1w) 1325 | -8/Materials | Core integrity fell below 20% 1333 | -8/Materials | Destroyed by G-47 Trooper with Particle Gun Last Messages --------------- The unstable cave ceiling collapses. U-05 Engineer lays Concrete. U-05 Engineer builds a Wall. U-05 Engineer lays Concrete. U-05 Engineer builds a Wall. U-05 Engineer lays Concrete. W-25 Informer sends out distress signal. U-05 Engineer lays Concrete. Nuclear Core destroyed. U-05 Engineer lays Concrete. U-05 Engineer builds a Wall. U-05 Engineer lays Concrete. U-05 Engineer builds a Door. U-05 Engineer lays Concrete. Acquired Imp. Light Cannon. Airjet destroyed. Imp. Light Cannon destroyed. T-07 Excavator is excavating. Penetrated by Slug. Critical hit (Burn: +37). Map ----- +----------------------------------------------------+ | ?????????????????????????????????????????????????? | | ?????????????????????????????????????????????????? | | ?????????????????????????????????????????????????? | | ?????????????????????????????????????????????????? | | ?????????????????????????????????????????????????? | | ?????????????????????????????????????????????????? | | ?????????????????????????????????????????????????? | | ?????????????????????????????????????????????????? | | ?????????????????????????????????????????????????? | | ?????????????????????????????????????????????????? | | ?????????????????? ????????????????????????????? | | ????????????????? ???????????????????????????? | | ?????????????????# #???????????????????????????? | | ?????????????????# #???????????????????????????? | | ?????????????????# #???????????????????????????? | | ????????????????? +???????????????????????????? | | ?????????????????# #???????????????????????????? | | ?????????????????# #???????????????????????????? | | ?????????????????# #???????????????????????????? | | ?????????????????# #???????????????????????????? | | ?????????????????# #???????????????????????????? | | ?????????????????# #???????????????????????????? | | ?????????????????# #???????????????????????????? | | ?????????????????# #???????????????????????????? | | ?????????????????# ##########??????????????????# | | ?????????????????# s s @ g #??????????????????# | | ???????????????####+######### #??????????????????# | | ???????????????# #???# #########??????????# | | ???????????????# """"" #???# ## #??????????# | | ??????????????## ""T"" #???# ## """ #??????????# | | ??????????????# #???# ## """ #??????????# | | ??????????????## #???# ## """ #??????????? | | ???????????????# = #???# ## #??????????? | | ???????????????# !!! #???# #?? =???????????? | | ???????????????# !!! ##### #####+############## | | ???????????????# !!! + | | ???????????????############################### # | | ????????????????????????????????????????# # | | ????????????????????????????????????????# ^# | | ????????????????????????????????????????# " ## # | | ????????????????????????????????????????# ## # | | ????????????????????????????????????????# ## # | | ??????????????????????????????????######## ###+# | | ??????????????????????????????????# # #???? | | ??????????????????????????????????#""" # #???? | | ??????????????????????????????????#""" + +???? | | ??????????????????????????????????#""" # #???? | | ??????????????????????????????????# # #???? | | ??????????????????????????????????#= # #???? | | ??????????????????????????????????######## ??? | +----------------------------------------------------+ Best States ------------- Heat Dissipation 31 Energy Generation 14 Energy Capacity 280 Matter Stores 260 Matter Capacity 300 Sight Range 16 Terrain Scan Density 10 Base Temperature (-) 100 Evasion (%) 53 Recoil Reduction 2 Item Schematics ----------------- None Robot Schematics ------------------ None Fabricated ------------ Nothing Repaired ---------- Nothing Alien Tech Used ----------------- None Achievements -------------- None Challenges ------------ None Game ------ Seed TowerGuidedInterrupter Manual? 0 Play Time 00:09:34 Cumulative 75.6 hours Start 2025.08.01 @ 09:59:02 End 2025.08.01 @ 10:11:34 Sessions 1 Manual Loads 0 Difficulty Rogue Special Mode None Game No. 304 Rogue 304 Adventurer 0 Explorer 0 Win Type - Total 0 Types 0/0/0/0/0/0/0/0/0/0 Lore% 25 Gallery% 33 Achievement% 28 Wizard Run 0 Options --------- Layout 2 ASCII 0 Keyboard 0 Movement Mouse Keybinds 0 Fullscreen 2 Font 24/Smallcaps Map View 50x44 Zoom Use 0% Tactical HUD 0 Map Filters NONE Filters NONE Steam 1 RUN: 0a69c054-16ed-484c-91fa-a5cdb89c4a60